fUST/lending_fUST_20251026
["ID","MTS","AMOUNT","RATE_DAILY","PERIOD"]
[392387918,1761418247612,-1311.34,0.00016438,2]
[392387919,1761418247621,-500.0,0.00016438,2]
[392387920,1761418247630,-500.0,0.00016438,2]
[392387921,1761418247638,-867.42,0.00016438,2]
[392387922,1761418247648,-500.0,0.00016438,2]
[392387923,1761418247661,-797.62,0.00016438,2]
[392387924,1761418247670,-500.0,0.00016438,2]
[392387925,1761418247679,-500.0,0.00016438,2]
[392387926,1761418247688,-500.0,0.00016438,2]
[392387927,1761418247697,-192.46491564,0.00016438,2]
[392387928,1761418247706,-500.0,0.00016438,2]
[392387929,1761418247716,-500.0,0.00016438,2]
[392387930,1761418247725,-500.0,0.00016438,2]
[392387931,1761418247734,-500.0,0.00016438,2]
[392387932,1761418247743,-1357.12,0.00016438,2]
[392387933,1761418247752,-500.0,0.00016438,2]
[392387934,1761418247762,-500.0,0.00016438,2]
[392387935,1761418247771,-747.47,0.00016438,2]
[392387936,1761418247780,-583.56949434,0.00016438,2]
[392387937,1761418247789,-949.73,0.00016438,2]
[392387938,1761418247798,-500.0,0.00016438,2]
[392387939,1761418247807,-500.0,0.00016438,2]
[392387940,1761418247816,-500.0,0.00016438,2]
[392387941,1761418247826,-830.8,0.00016438,2]
[392387942,1761418247835,-500.0,0.00016438,2]
[392387943,1761418247843,-500.0,0.00016438,2]
[392387944,1761418247853,-500.0,0.00016438,2]
[392387945,1761418247862,-500.0,0.00016438,2]
[392387946,1761418247871,-500.0,0.00016438,2]
[392387947,1761418247880,-971.38,0.00016438,2]
[392387948,1761418247889,-1225.07,0.00016438,2]
[392387949,1761418247898,-500.0,0.00016438,2]
[392387950,1761418247908,-882.58,0.00016438,2]
[392387951,1761418247917,-883.9,0.00016438,2]
[392387952,1761418247927,-500.0,0.00016438,2]
[392387953,1761418247935,-500.0,0.00016438,2]
[392387954,1761418247944,-500.0,0.00016438,2]
[392387955,1761418247953,-500.0,0.00016438,2]
[392387956,1761418247963,-500.0,0.00016438,2]
[392387957,1761418247972,-500.0,0.00016438,2]
[392387958,1761418247982,-584.76,0.00016438,2]
[392387959,1761418247990,-500.0,0.00016438,2]
[392387960,1761418247999,-500.0,0.00016438,2]
[392387961,1761418248009,-500.0,0.00016438,2]
[392387962,1761418248018,-500.0,0.00016438,2]
[392387963,1761418248027,-500.0,0.00016438,2]
[392387964,1761418248036,-2398.14,0.00016438,2]
[392387965,1761418248045,-500.0,0.00016438,2]
[392387966,1761418248054,-500.0,0.00016438,2]
[392387967,1761418248063,-1078.06,0.00016438,2]
[392387968,1761418248072,-500.0,0.00016438,2]
[392387969,1761418248081,-1000.0,0.00016438,2]
[392387970,1761418248090,-500.0,0.00016438,2]
[392387971,1761418248100,-880.03,0.00016438,2]
[392387972,1761418248109,-500.0,0.00016438,2]
[392387973,1761418248118,-609.82294896,0.00016438,2]
[392387974,1761418248127,-500.0,0.00016438,2]
[392387975,1761418248135,-500.0,0.00016438,2]
[392387976,1761418248144,-500.0,0.00016438,2]
[392387977,1761418248154,-500.0,0.00016438,2]
[392387978,1761418248163,-780.27,0.00016438,2]
[392387979,1761418248172,-500.0,0.00016438,2]
[392387980,1761418248181,-808.36,0.00016438,2]
[392387981,1761418248191,-500.0,0.00016438,2]
[392387982,1761418248200,-1216.83,0.00016438,2]
[392387983,1761418248211,-500.0,0.00016438,2]
[392387984,1761418248220,-500.0,0.00016438,2]
[392387985,1761418248229,-500.0,0.00016438,2]
[392387986,1761418248238,-500.0,0.00016438,2]
[392387987,1761418248248,-500.0,0.00016438,2]
[392387988,1761418248257,-500.0,0.00016438,2]
[392387989,1761418248267,-500.0,0.00016438,2]
[392387990,1761418248276,-500.0,0.00016438,2]
[392387991,1761418248285,-507.22147424,0.00016438,2]
[392387992,1761418248294,-500.0,0.00016438,2]
[392387993,1761418248308,-500.0,0.00016438,2]
[392387994,1761418248317,-500.0,0.00016438,2]
[392387995,1761418248326,-500.0,0.00016438,2]
[392387996,1761418248335,-500.0,0.00016438,2]
[392387997,1761418248345,-504.29998997,0.00016438,2]
[392387998,1761418248354,-500.0,0.00016438,2]
[392387999,1761418248364,-500.0,0.00016438,2]
[392388000,1761418248373,-1017.05,0.00016438,2]
[392388001,1761418248382,-500.0,0.00016438,2]
[392388002,1761418248391,-500.0,0.00016438,2]
[392388003,1761418248400,-500.0,0.00016438,2]
[392388004,1761418248411,-500.0,0.00016438,2]
[392388005,1761418248419,-500.0,0.00016438,2]
[392388006,1761418248428,-730.08,0.00016438,2]
[392388007,1761418248437,-500.0,0.00016438,2]
[392388008,1761418248446,-1435.81,0.00016438,2]
[392388009,1761418248455,-500.0,0.00016438,2]
[392388010,1761418248463,-500.0,0.00016438,2]
[392388011,1761418248472,-1356.13469702,0.00016438,2]
[392388012,1761418248488,-304.84530298,0.00016438,2]
[392388013,1761418248497,-500.0,0.00016438,2]
[392388014,1761418248507,-500.0,0.00016438,2]
[392388015,1761418248516,-500.0,0.00016438,2]
[392388016,1761418248525,-500.0,0.00016438,2]
[392388017,1761418248534,-500.0,0.00016438,2]
[392388018,1761418248543,-500.0,0.00016438,2]
[392388019,1761418248552,-500.0,0.00016438,2]
[392388020,1761418248561,-500.0,0.00016438,2]
[392388021,1761418248569,-500.0,0.00016438,2]
[392388022,1761418248578,-500.0,0.00016438,2]
[392388023,1761418248587,-713.85,0.00016438,2]
[392388024,1761418248596,-500.0,0.00016438,2]
[392388025,1761418248606,-500.0,0.00016438,2]
[392388026,1761418248615,-500.0,0.00016438,2]
[392388027,1761418248624,-500.0,0.00016438,2]
[392388028,1761418248633,-500.0,0.00016438,2]
[392388029,1761418248642,-1465.95,0.00016438,2]
[392388030,1761418248651,-1528.68,0.00016438,2]
[392388031,1761418248664,-500.0,0.00016438,2]
[392388032,1761418248673,-291.53658141,0.00016438,2]
[392388033,1761418248685,-208.46341859,0.00016438,2]
[392388034,1761418248694,-500.0,0.00016438,2]
[392388035,1761418248704,-500.0,0.00016438,2]
[392388036,1761418248713,-1344.31,0.00016438,2]
[392388037,1761418248722,-500.0,0.00016438,2]
[392388038,1761418248731,-500.0,0.00016438,2]
[392388039,1761418248740,-798.13,0.00016438,2]
[392388040,1761418248750,-500.0,0.00016438,2]
[392388041,1761418248759,-389.24258141,0.00016438,2]
[392388042,1761418258757,-110.75741859,0.00016438,2]
[392388043,1761418258779,-72.31950787,0.00016438,2]
[392388044,1761418259585,-758.15049213,0.00016438,2]
[392388045,1761418259613,-500.0,0.00016438,2]
[392388046,1761418259640,-1570.53,0.00016438,2]
[392388047,1761418259671,-1243.34,0.00016438,2]
[392388048,1761418259697,-505.3190017,0.00016438,2]
[392388049,1761418259724,-345.33101234,0.00016438,2]
[392388050,1761418259911,-154.66898766,0.00016438,2]
[392388051,1761418259941,-500.0,0.00016438,2]
[392388052,1761418259969,-500.0,0.00016438,2]
[392388053,1761418260014,-589.29,0.00016438,2]
[392388054,1761418260047,-615.31443431,0.00016438,2]
[392388055,1761418260078,-500.0,0.00016438,2]
[392388056,1761418260109,-1038.44,0.00016438,2]
[392388057,1761418260140,-500.0,0.00016438,2]
[392388058,1761418260170,-430.88315606,0.00016438,2]
[392388059,1761418260267,-342.81684394,0.00016438,2]
[392388060,1761418260296,-500.0,0.00016438,2]
[392388061,1761418260324,-500.0,0.00016438,2]
[392388062,1761418260352,-500.0,0.00016438,2]
[392388063,1761418260380,-500.0,0.00016438,2]
[392388064,1761418260409,-957.76,0.00016438,2]
[392388065,1761418260438,-165.2206338,0.00016438,2]
[392388066,1761418260466,-500.0,0.00016438,2]
[392388067,1761418260496,-525.73,0.00016438,2]
[392388068,1761418260525,-500.0,0.00016438,2]
[392388069,1761418260613,-500.0,0.00016438,2]
[392388070,1761418260641,-500.0,0.00016438,2]
[392388071,1761418260679,-634.51,0.00016438,2]
[392388072,1761418260707,-500.0,0.00016438,2]
[392388073,1761418260742,-502.36654835,0.00016438,2]
[392388074,1761418260777,-500.0,0.00016438,2]
[392388075,1761418260808,-500.0,0.00016438,2]
[392388076,1761418260938,-500.0,0.00016438,2]
[392388077,1761418260967,-500.0,0.00016438,2]
[392388078,1761418260998,-226.2569033,0.00016438,2]
[392388079,1761418261156,-273.7430967,0.00016438,2]
[392388080,1761418261185,-500.0,0.00016438,2]
[392388081,1761418261215,-949.8,0.00016438,2]
[392388082,1761418261245,-677.71,0.00016438,2]
[392388083,1761418261275,-500.0,0.00016438,2]
[392388084,1761418261304,-500.0,0.00016438,2]
[392388085,1761418261333,-500.0,0.00016438,2]
[392388086,1761418261362,-500.0,0.00016438,2]
[392388087,1761418261391,-500.0,0.00016438,2]
[392388088,1761418261495,-504.84924386,0.00016438,2]
[392388089,1761418261523,-500.0,0.00016438,2]
[392388090,1761418261551,-500.0,0.00016438,2]
[392388091,1761418261578,-500.0,0.00016438,2]
[392388092,1761418261605,-500.0,0.00016438,2]
[392388093,1761418261630,-500.0,0.00016438,2]
[392388094,1761418261657,-861.5,0.00016438,2]
[392388095,1761418261690,-500.0,0.00016438,2]
[392388096,1761418261719,-500.0,0.00016438,2]
[392388097,1761418262057,-500.0,0.00016438,2]
[392388098,1761418262084,-1303.34,0.00016438,2]
[392388099,1761418262112,-1281.54,0.00016438,2]
[392388100,1761418262140,-500.0,0.00016438,2]
[392388101,1761418262168,-500.0,0.00016438,2]
[392388102,1761418262197,-500.0,0.00016438,2]
[392388103,1761418262226,-330.25,0.00016438,2]
[392388104,1761418262339,-169.75,0.00016438,2]
[392388105,1761418262368,-1596.31,0.00016438,2]
[392388106,1761418262396,-1926.78,0.00016438,2]
[392388107,1761418262425,-500.0,0.00016438,2]
[392388108,1761418262455,-500.0,0.00016438,2]
[392388109,1761418262485,-114.33,0.00016438,2]
[392388110,1761418262551,-385.67,0.00016438,2]
[392388111,1761418262579,-817.07,0.00016438,2]
[392388112,1761418262606,-500.0,0.00016438,2]
[392388113,1761418262632,-746.31,0.00016438,2]
[392388114,1761418262663,-859.2,0.00016438,2]
[392388115,1761418262692,-500.0,0.00016438,2]
[392388116,1761418262720,-510.83,0.00016438,2]
[392388117,1761418262747,-500.0,0.00016438,2]
[392388118,1761418262850,-500.0,0.00016438,2]
[392388119,1761418262878,-500.0,0.00016438,2]
[392388120,1761418262905,-500.0,0.00016438,2]
[392388121,1761418262933,-1501.49,0.00016438,2]
[392388122,1761418262962,-500.0,0.00016438,2]
[392388123,1761418262991,-1327.35,0.00016438,2]
[392388124,1761418264533,-231.13177892,0.00016438,2]
[392388125,1761418266898,-300.0,0.00016437,2]
[392388126,1761418266928,-268.86822108,0.00016438,2]
[392388127,1761418266957,-500.0,0.00016438,2]
[392388128,1761418266986,-500.0,0.00016438,2]
[392388129,1761418267015,-500.0,0.00016438,2]
[392388130,1761418267043,-503.00131683,0.00016438,2]
[392388131,1761418267071,-589.18,0.00016438,2]
[392388132,1761418267097,-500.0,0.00016438,2]
[392388133,1761418267125,-500.0,0.00016438,2]
[392388134,1761418267154,-709.14092418,0.00016438,2]
[392388135,1761418267287,-259.62907582,0.00016438,2]
[392388136,1761418267315,-500.0,0.00016438,2]
[392388137,1761418267344,-500.0,0.00016438,2]
[392388138,1761418267373,-1299.54,0.00016438,2]
[392388139,1761418267403,-500.0,0.00016438,2]
[392388140,1761418267432,-1313.67,0.00016438,2]
[392388141,1761418267460,-500.0,0.00016438,2]
[392388142,1761418267794,-1185.66,0.00016438,2]
[392388143,1761418267822,-500.0,0.00016438,2]
[392388144,1761418267851,-500.0,0.00016438,2]
[392388145,1761418267879,-500.0,0.00016438,2]
[392388146,1761418267906,-500.0,0.00016438,2]
[392388147,1761418267936,-744.51,0.00016438,2]
[392388148,1761418267964,-500.0,0.00016438,2]
[392388149,1761418267992,-552.23,0.00016438,2]
[392388150,1761418268085,-35.21,0.00016438,2]
[392388151,1761418268115,-500.0,0.00016438,2]
[392388152,1761418268145,-500.0,0.00016438,2]
[392388153,1761418268173,-500.0,0.00016438,2]
[392388154,1761418268205,-500.0,0.00016438,2]
[392388155,1761418268234,-596.48,0.00016438,2]
[392388156,1761418268263,-486.24961549,0.00016438,2]
[392388157,1761418268294,-500.0,0.00016438,2]
[392388158,1761418268366,-500.0,0.00016438,2]
[392388159,1761418268397,-500.0,0.00016438,2]
[392388160,1761418268427,-264.13076902,0.00016438,2]
[392388161,1761418268584,-235.86923098,0.00016438,2]
[392388162,1761418268615,-817.13,0.00016438,2]
[392388163,1761418268644,-500.0,0.00016438,2]
[392388164,1761418268679,-507.22,0.00016438,2]
[392388165,1761418268711,-1760.55,0.00016438,2]
[392388166,1761418268740,-500.0,0.00016438,2]
[392388167,1761418268782,-500.0,0.00016438,2]
[392388168,1761418280856,-196.0,0.00016,2]
[392388169,1761418282041,196.0,0.0001584,2]
[392388170,1761418288762,-196.0,0.00016023,2]
[392388171,1761418288787,-35.13177892,0.00016046,2]
[392388172,1761418292376,-160.86822108,0.00016046,2]
[392388173,1761418292399,-35.13177889,0.00016069,2]
[392388174,1761418294000,-160.86822111,0.00016069,2]
[392388175,1761418294022,-183.46693848,0.00016092,2]
[392388176,1761418295563,-12.53306152,0.00016092,2]
[392388177,1761418295596,-196.0,0.00016115,2]
[392388178,1761418295621,-84.38899901,0.00016133,2]
[392388179,1761418298070,-168.12084549,0.00016133,2]
[392388180,1761418298093,-141.5557074,0.00016133,2]
[392388181,1761418298644,5000.0,0.00016,2]
[392388182,1761418299639,-345.75950302,0.00016133,2]
[392388183,1761418301248,-12.68478958,0.00016133,2]
[392388184,1761418301272,-206.2211617,0.00016133,2]
[392388185,1761418305946,500.0,0.00015988,2]
[392388186,1761418306199,500.0,0.00015988,2]
[392388187,1761418306233,1059.22371411,0.00016092,2]
[392388188,1761418306770,-410.05096662,0.00016108,2]
[392388189,1761418308929,-199.19903338,0.00016108,2]
[392388190,1761418310997,-11.31804585,0.00016108,2]
[392388191,1761418311023,-154.78707502,0.00016133,2]
[392388192,1761418313751,-138.99176328,0.00016133,2]
[392388193,1761418313776,-252.91166197,0.00016133,2]
[392388194,1761418315534,-247.08833803,0.00016133,2]
[392388195,1761418315558,-52.91166197,0.00016133,2]
[392388196,1761418322181,2978.85777343,0.00016108,2]
[392388197,1761418322769,-279.52149735,0.00016132,2]
[392388198,1761418324981,-20.47850265,0.00016132,2]
[392388199,1761418325004,-417.55950424,0.00016133,2]
[392388200,1761418326492,-82.44049576,0.00016133,2]
[392388201,1761418326518,-154.45409734,0.00016133,2]
[392388202,1761418328431,-292.63424069,0.00016133,2]
[392388203,1761418328451,-11.97683297,0.00016133,2]
[392388204,1761418331035,-156.56740162,0.00016133,2]
[392388205,1761418333127,-281.31986779,0.00016133,2]
[392388206,1761418343015,-151.91941169,0.00016133,2]
[392388207,1761418343036,-47.27962169,0.00016133,2]
[392388208,1761418344737,1696.95244041,0.00016132,2]
[392388209,1761418345760,-314.25338474,0.00016133,2]
[392388210,1761418347334,-138.46699357,0.00016133,2]
[392388211,1761418347355,-103.8558698,0.00016133,2]
[392388212,1761418353101,324.82387567,0.00016132,2]
[392388213,1761418353129,500.0,0.00016132,2]
[392388214,1761418353162,500.0,0.00016132,2]
[392388215,1761418353195,369.51882064,0.00016132,2]
[392388216,1761418353230,500.0,0.00016132,2]
[392388217,1761418353263,500.0,0.00016132,2]
[392388218,1761418353296,500.0,0.00016132,2]
[392388219,1761418353331,500.0,0.00016132,2]
[392388220,1761418353363,500.0,0.00016132,2]
[392388221,1761418353409,500.0,0.00016132,2]
[392388222,1761418353442,500.0,0.00016132,2]
[392388223,1761418353476,500.0,0.00016132,2]
[392388224,1761418353517,500.0,0.00016132,2]
[392388225,1761418353547,500.0,0.00016132,2]
[392388226,1761418353585,500.0,0.00016132,2]
[392388227,1761418353613,609.5216961,0.00016132,2]
[392388228,1761418353641,499.19316718,0.00016132,2]
[392388229,1761418353662,0.80683282,0.00016132,2]
[392388230,1761418353694,500.0,0.00016132,2]
[392388231,1761418353728,500.0,0.00016132,2]
[392388232,1761418353768,500.0,0.00016132,2]
[392388233,1761418353801,500.0,0.00016132,2]
[392388234,1761418353855,500.0,0.00016132,2]
[392388235,1761418353896,500.0,0.00016132,2]
[392388236,1761418353956,500.0,0.00016132,2]
[392388237,1761418353987,500.0,0.00016132,2]
[392388238,1761418354020,500.0,0.00016132,2]
[392388239,1761418354086,500.0,0.00016132,2]
[392388240,1761418354119,500.0,0.00016132,2]
[392388241,1761418354155,500.0,0.00016132,2]
[392388242,1761418354184,500.0,0.00016132,2]
[392388243,1761418354225,500.0,0.00016132,2]
[392388244,1761418354264,500.0,0.00016132,2]
[392388245,1761418354305,500.0,0.00016132,2]
[392388246,1761418354332,500.0,0.00016132,2]
[392388247,1761418354368,-187.88725035,0.00016138,2]
[392388248,1761418354397,500.0,0.00016132,2]
[392388249,1761418354429,500.0,0.00016132,2]
[392388250,1761418354456,499.20316718,0.00016132,2]
[392388251,1761418354478,0.79683282,0.00016132,2]
[392388252,1761418354506,500.0,0.00016132,2]
[392388253,1761418354743,500.0,0.00016132,2]
[392388254,1761418354780,500.0,0.00016132,2]
[392388255,1761418354808,500.0,0.00016132,2]
[392388256,1761418354835,500.0,0.00016132,2]
[392388257,1761418354862,500.0,0.00016132,2]
[392388258,1761418354900,500.0,0.00016132,2]
[392388259,1761418354942,500.0,0.00016132,2]
[392388260,1761418354970,500.0,0.00016132,2]
[392388261,1761418355002,500.0,0.00016132,2]
[392388262,1761418355043,500.0,0.00016132,2]
[392388263,1761418355072,500.0,0.00016132,2]
[392388264,1761418355105,500.0,0.00016132,2]
[392388265,1761418355152,180.19093629,0.00016132,2]
[392388266,1761418355261,500.0,0.00016132,2]
[392388267,1761418355293,500.0,0.00016132,2]
[392388268,1761418356804,-8.11274965,0.00016138,2]
[392388269,1761418356826,-196.0,0.00016162,2]
[392388270,1761418356847,-196.0,0.00016185,2]
[392388271,1761418356869,-99.88725035,0.00016208,2]
[392388272,1761418358968,-96.11274965,0.00016208,2]
[392388273,1761418358990,-196.0,0.00016231,2]
[392388274,1761418359014,-7.88725035,0.00016254,2]
[392388275,1761418362766,-188.11274965,0.00016254,2]
[392388276,1761418363470,-196.0,0.00016277,2]
[392388277,1761418363492,-196.0,0.000163,2]
[392388278,1761418363515,-94.40397188,0.00016323,2]
[392388279,1761418363612,274.200705,0.00019,6]
[392388280,1761418367054,2230.06650372,0.00016254,2]
[392388281,1761418367492,533.0841532,0.00016132,2]
[392388282,1761418367656,500.0,0.00016132,2]
[392388283,1761418367704,359.12105532,0.00016132,2]
[392388284,1761418369016,500.0,0.00016132,2]
[392388285,1761418369063,500.0,0.00016132,2]
[392388286,1761418369090,500.0,0.00016133,2]
[392388287,1761418369120,500.0,0.00016132,2]
[392388288,1761418369174,300.0,0.00016132,2]
[392388289,1761418377906,-500.0,0.00016407,2]
[392388290,1761418379894,500.0,0.00016132,2]
[392388291,1761418379948,500.0,0.00016132,2]
[392388292,1761418380102,432.97464631,0.00016132,2]
[392388293,1761418380984,500.0,0.00016132,2]
[392388294,1761418381024,153.60453898,0.00016132,2]
[392388295,1761418384692,500.0,0.00016132,2]
[392388296,1761418385482,589.67852336,0.00016132,2]
[392388297,1761418386825,500.0,0.00016132,2]
[392388298,1761418392996,-249.48377689,0.00016437,2]
[392388299,1761418393029,-290.95101578,0.00016437,2]
[392388300,1761418393057,-1200.0,0.00016437,2]
[392388301,1761418393086,-300.0,0.00016437,2]
[392388302,1761418394226,196.0,0.00016,2]
[392388303,1761418394524,196.0,0.00016028,2]
[392388304,1761418394828,196.0,0.00016055,2]
[392388305,1761418395123,196.0,0.00016083,2]
[392388306,1761418395433,196.0,0.00016111,2]
[392388307,1761418395750,196.0,0.00016138,2]
[392388308,1761418396045,196.0,0.00016166,2]
[392388309,1761418396348,196.0,0.00016193,2]
[392388310,1761418396637,196.0,0.00016221,2]
[392388311,1761418396992,196.0,0.00016249,2]
[392388312,1761418397373,196.0,0.00016276,2]
[392388313,1761418397662,196.0,0.00016304,2]
[392388314,1761418398001,196.0,0.00016332,2]
[392388315,1761418398166,395.3470981,0.00016337,2]
[392388316,1761418398326,196.0,0.00016359,2]
[392388317,1761418398645,196.0,0.00016387,2]
[392388318,1761418398966,196.0,0.00016414,2]
[392388319,1761418408210,-500.0,0.00016438,2]
[392388320,1761418408239,-500.0,0.00016438,2]
[392388321,1761418408267,-500.0,0.00016438,2]
[392388322,1761418408296,-560.0,0.00016438,2]
[392388323,1761418408324,-500.0,0.00016438,2]
[392388324,1761418408351,-500.0,0.00016438,2]
[392388325,1761418408379,-928.21,0.00016438,2]
[392388326,1761418408406,-500.0,0.00016438,2]
[392388327,1761418408435,-500.0,0.00016438,2]
[392388328,1761418408608,-500.0,0.00016438,2]
[392388329,1761418408638,-500.0,0.00016438,2]
[392388330,1761418408665,-500.0,0.00016438,2]
[392388331,1761418408696,-1324.83,0.00016438,2]
[392388332,1761418408730,-500.0,0.00016438,2]
[392388333,1761418408761,-500.0,0.00016438,2]
[392388334,1761418408792,-500.0,0.00016438,2]
[392388335,1761418408825,-660.24,0.00016438,2]
[392388336,1761418408998,-29.87,0.00016438,2]
[392388337,1761418409027,-500.0,0.00016438,2]
[392388338,1761418409238,-500.0,0.00016438,2]
[392388339,1761418409269,-1002.18,0.00016438,2]
[392388340,1761418409297,-1184.02,0.00016438,2]
[392388341,1761418409326,-500.0,0.00016438,2]
[392388342,1761418409354,-905.6,0.00016438,2]
[392388343,1761418409384,-256.67,0.00016438,2]
[392388344,1761418409454,-243.33,0.00016438,2]
[392388345,1761418409481,-613.25,0.00016438,2]
[392388346,1761418409510,-1192.66,0.00016438,2]
[392388347,1761418409539,-671.42,0.00016438,2]
[392388348,1761418409571,-656.78,0.00016438,2]
[392388349,1761418409601,-500.0,0.00016438,2]
[392388350,1761418409629,-500.0,0.00016438,2]
[392388351,1761418409656,-500.0,0.00016438,2]
[392388352,1761418409882,-500.0,0.00016438,2]
[392388353,1761418409909,-500.0,0.00016438,2]
[392388354,1761418409941,-2026.33,0.00016438,2]
[392388355,1761418409969,-1006.66,0.00016438,2]
[392388356,1761418409998,-500.0,0.00016438,2]
[392388357,1761418410027,-434.03,0.00016438,2]
[392388358,1761418410149,-65.97,0.00016438,2]
[392388359,1761418410180,-500.0,0.00016438,2]
[392388360,1761418410210,-1515.44,0.00016438,2]
[392388361,1761418410240,-500.0,0.00016438,2]
[392388362,1761418410267,-824.84,0.00016438,2]
[392388363,1761418410295,-500.0,0.00016438,2]
[392388364,1761418410323,-500.0,0.00016438,2]
[392388365,1761418410352,-500.0,0.00016438,2]
[392388366,1761418410556,-500.0,0.00016438,2]
[392388367,1761418410586,-500.0,0.00016438,2]
[392388368,1761418410615,-523.19,0.00016438,2]
[392388369,1761418410645,-1227.66,0.00016438,2]
[392388370,1761418410672,-2143.47,0.00016438,2]
[392388371,1761418410733,-500.0,0.00016438,2]
[392388372,1761418410762,-1650.59,0.00016438,2]
[392388373,1761418410793,-500.0,0.00016438,2]
[392388374,1761418410822,-863.63,0.00016438,2]
[392388375,1761418411107,-584.99383864,0.00016438,2]
[392388376,1761418411140,-500.0,0.00016438,2]
[392388377,1761418411170,-301.58232272,0.00016438,2]
[392388378,1761418411335,-198.41767728,0.00016438,2]
[392388379,1761418411363,-1469.31,0.00016438,2]
[392388380,1761418411392,-280.55749288,0.00016438,2]
[392388381,1761418411419,-500.0,0.00016438,2]
[392388382,1761418411447,-500.0,0.00016438,2]
[392388383,1761418411476,-1429.19965968,0.00016438,2]
[392388384,1761418411912,-1245.04034032,0.00016438,2]
[392388385,1761418411939,-500.0,0.00016438,2]
[392388386,1761418411967,-1611.67,0.00016438,2]
[392388387,1761418411995,-1035.68931936,0.00016438,2]
[392388388,1761418412964,165.55519,0.00019,6]
[392388389,1761418415108,-1215.21068064,0.00016438,2]
[392388390,1761418415138,-1479.74,0.00016438,2]
[392388391,1761418415167,-500.0,0.00016438,2]
[392388392,1761418415194,-996.69,0.00016438,2]
[392388393,1761418415248,-2588.85,0.00016438,2]
[392388394,1761418415277,-1212.62,0.00016438,2]
[392388395,1761418415305,-973.72,0.00016438,2]
[392388396,1761418415362,-514.96,0.00016438,2]
[392388397,1761418415390,-500.0,0.00016438,2]
[392388398,1761418415425,-500.0,0.00016438,2]
[392388399,1761418415674,-293.92697803,0.00016438,2]
[392388400,1761418415706,-500.0,0.00016438,2]
[392388401,1761418415738,-500.0,0.00016438,2]
[392388402,1761418415768,-729.78,0.00016438,2]
[392388403,1761418415805,-1239.75,0.00016438,2]
[392388404,1761418415951,-500.0,0.00016438,2]
[392388405,1761418415984,-500.0,0.00016438,2]
[392388406,1761418416015,-524.84140373,0.00016438,2]
[392388407,1761418416045,-716.32,0.00016438,2]
[392388408,1761418416075,-764.38,0.00016438,2]
[392388409,1761418416106,-500.0,0.00016438,2]
[392388410,1761418416136,-821.38,0.00016438,2]
[392388411,1761418416368,-1463.43,0.00016438,2]
[392388412,1761418416396,-500.0,0.00016438,2]
[392388413,1761418416425,-500.0,0.00016438,2]
[392388414,1761418416453,-1846.49,0.00016438,2]
[392388415,1761418416480,-500.0,0.00016438,2]
[392388416,1761418432699,-500.0,0.00016438,2]
[392388417,1761418432730,-522.14226528,0.00016438,2]